bitfinex-derivatives/quotes_ETHF0:USTF0_20250213
["timestamp","ask_amount","ask_price","bid_price","bid_amount"]
[1739438677633,0.74671,2678.0,2677.9,0.5599]
[1739438678236,1.57594187,2678.2,2677.9,0.5599]
[1739438678439,0.74671,2678.0,2677.9,0.5599]
[1739438680535,0.74674,2677.9,2677.8,3.21340339]
[1739438680734,0.81060769,2677.9,2677.8,0.00560339]
[1739438680946,1.36380769,2677.9,2677.8,0.00560339]
[1739438681139,1.83774956,2677.9,2677.8,0.00560339]
[1739438681438,1.83775596,2677.9,2677.8,0.00560339]
[1739438682042,5.11833896,2677.9,2677.8,0.00339458]
[1739438683343,5.11834023,2677.9,2677.8,0.00339458]
[1739438684839,4.64439836,2677.9,2677.8,0.00339458]
[1739438685040,4.64439995,2677.9,2677.8,0.00339458]
[1739438688549,4.580523,2677.9,2677.8,0.00339458]
[1739438688853,4.64440032,2677.9,2677.8,0.00339458]
[1739438692054,4.64439889,2677.9,2677.8,0.00339458]
[1739438692751,4.09119854,2677.9,2677.8,0.00339458]
[1739438695852,4.09119811,2677.9,2677.8,0.00339458]
[1739438699857,4.56602244,2677.9,2677.8,0.00339458]
[1739438700552,4.56602244,2677.9,2677.8,0.00205658]
[1739438700752,3.81928244,2677.9,2677.4,4.8945]
[1739438701057,0.74685,2677.5,2677.4,4.305]
[1739438701558,0.47482433,2677.5,2677.4,1.0972]
[1739438701762,1.22165433,2677.6,2677.4,1.84406]
[1739438701959,0.74683,2677.6,2677.4,1.0972]
[1739438702164,0.74685,2677.5,2677.4,1.0972]
[1739438706766,1.03522433,2677.8,2677.4,1.0972]
[1739438706962,0.74685,2677.5,2677.4,1.0972]
[1739438707159,0.74684,2677.6,2677.4,1.0972]
[1739438707359,1.03522433,2677.8,2677.4,1.84407]
[1739438707561,0.74684,2677.6,2677.4,1.0972]
[1739438707762,1.03522433,2677.8,2677.4,1.0972]
[1739438707963,0.74684,2677.6,2677.4,1.0972]
[1739438708158,3.2078,2678.0,2677.5,3.2078]
[1739438708363,0.7468,2677.7,2677.5,3.2078]
[1739438709267,3.2078,2678.0,2677.5,3.2078]
[1739438709473,0.06387352,2677.9,2677.5,3.2078]
[1739438709769,0.74678,2677.8,2677.5,3.95464]
[1739438710364,0.74679,2677.8,2677.5,3.2078]
[1739438710764,0.74679,2677.8,2677.5,3.95463]
[1739438711165,0.74682,2677.7,2677.5,3.2078]
[1739438711365,0.74682,2677.7,2677.5,3.95465]
[1739438711973,0.74682,2677.6,2677.5,3.2078]
[1739438715071,0.5599,2677.8,2677.5,3.2078]
[1739438715371,0.7468,2677.7,2677.5,3.95463]
[1739438716278,0.4756053,2677.9,2677.5,3.2078]
[1739438716470,0.06387484,2677.8,2677.6,0.74681]
[1739438716668,3.2078,2678.0,2677.7,0.597]
[1739438716975,0.74677,2677.8,2677.7,0.597]
[1739438717863,0.81064313,2677.8,2677.7,0.597]
[1739438718065,0.74677,2677.8,2677.7,0.597]
[1739438718267,0.81064235,2677.8,2677.7,0.597]
[1739438718467,3.2078,2678.0,2677.7,0.597]
[1739438718665,0.74677,2677.8,2677.7,0.597]
[1739438719071,0.74677,2677.8,2677.7,41.397]
[1739438719780,0.81064343,2677.8,2677.7,41.397]
[1739438720189,0.81064283,2677.8,2677.7,0.597]
[1739438722279,0.74682,2677.6,2677.5,3.748]
[1739438724681,0.47554279,2677.9,2677.5,3.748]
[1739438724883,0.74682,2677.6,2677.5,3.748]
[1739438725285,0.47554279,2677.9,2677.5,3.748]
[1739438725487,0.74682,2677.6,2677.5,3.748]
[1739438726583,0.47554279,2677.9,2677.5,3.748]
[1739438726782,0.06387475,2677.8,2677.5,3.748]
[1739438726981,0.74682,2677.6,2677.5,3.748]
[1739438727178,0.47554279,2677.9,2677.5,3.748]
[1739438727378,0.06387524,2677.8,2677.5,3.748]
[1739438727882,0.74682,2677.6,2677.5,3.748]
[1739438728681,0.47554279,2677.9,2677.5,3.748]
[1739438728885,0.81064179,2677.8,2677.6,0.74681]
[1739438729081,0.74677,2677.8,2677.6,0.74681]
[1739438729290,0.47554279,2677.9,2677.8,0.74677]
[1739438729479,1.22221279,2678.2,2677.9,0.74673]
[1739438729785,0.74669,2678.1,2678.0,1.1546]
[1739438730084,0.74669,2678.1,2678.0,41.9546]
[1739438730380,0.81055476,2678.1,2678.0,41.9546]
[1739438730587,0.81055476,2678.1,2678.0,1.1546]
[1739438730987,0.81055476,2678.1,2678.0,41.9546]
[1739438731685,0.81055476,2678.1,2678.0,1.1546]
[1739438731888,1.38895476,2678.1,2678.0,1.1546]
[1739438732583,1.32509,2678.1,2678.0,1.1546]
[1739438732789,1.38895789,2678.1,2678.0,1.1546]
[1739438733591,2.86226889,2678.1,2678.0,1.1546]
[1739438734290,2.798401,2678.1,2678.0,1.1546]
[1739438734586,2.86226863,2678.1,2678.0,1.1546]
[1739438734979,2.11557863,2678.1,2677.8,6.2038]
[1739438735281,2.220051,2677.9,2677.8,2.996]
[1739438735479,2.220051,2677.9,2677.3,1.7099]
[1739438735480,2.01257111,2677.9,2677.3,1.7099]
[1739438735684,0.74691,2677.3,2677.2,0.00560339]
[1739438735879,0.74691,2677.3,2676.7,4.3162]
[1739438735880,3.27166763,2677.3,2676.7,4.3162]
[1739438736079,0.62476763,2677.2,2676.8,1.473311]
[1739438736283,5.15650348,2677.3,2677.0,4.681111]
[1739438736284,1.473311,2677.3,2677.0,4.681111]
[1739438736483,0.5784,2677.4,2677.1,1.1626]
[1739438736783,2.220171,2677.5,2677.1,1.90955]
[1739438736984,0.06388334,2677.4,2677.2,0.5621]
[1739438737379,0.06388334,2677.4,2677.2,2.035411]
[1739438737582,0.47526114,2677.6,2677.3,3.95469]
[1739438737783,0.47526114,2677.8,2677.3,3.2078]
[1739438738085,0.0638774,2677.7,2677.3,3.95469]
[1739438738386,0.74679,2677.8,2677.3,3.95469]
[1739438738595,0.47526114,2677.8,2677.4,0.74687]
[1739438738778,1.22204114,2677.8,2677.4,0.74687]
[1739438739094,1.22204114,2677.8,2677.5,0.5738]
[1739438739292,0.47526114,2677.8,2677.6,0.542]
[1739438739590,1.05366114,2678.1,2677.7,0.5641]
[1739438739790,0.74677,2677.8,2677.7,0.5641]
[1739438739987,0.81064273,2677.8,2677.7,0.5641]
[1739438741695,0.74682,2677.6,2677.5,0.5738]
[1739438742093,1.729,2678.4,2677.5,3.86673466]
[1739438742292,0.7467,2678.1,2677.9,3.2078]
[1739438742490,0.74667,2678.2,2678.0,1.644]
[1739438742793,0.81054512,2678.1,2678.0,1.644]
[1739438743294,0.81054804,2678.1,2678.0,1.644]
[1739438744187,0.81054804,2678.1,2678.0,0.5395]
[1739438746888,0.81054924,2678.1,2678.0,0.5395]
[1739438747290,0.00560339,2678.3,2678.0,0.5395]
[1739438747497,0.06386321,2678.2,2678.1,0.5773]
[1739438748198,0.00560339,2678.3,2678.1,0.5773]
[1739438748399,0.00560339,2678.3,2678.2,4.49576]
[1739438749794,0.74651,2678.8,2678.5,0.74657]
[1739438749988,1.2209,2678.9,2678.6,0.5391]
[1739438750288,1.728,2679.7,2678.8,3.2078]
[1739438750488,1.728,2679.7,2679.0,3.29293466]
[1739438750489,0.74636,2679.3,2679.0,3.29293466]
[1739438750695,0.74637,2679.3,2679.0,44.09293466]
[1739438750892,0.00560339,2679.4,2679.1,0.5391]
[1739438751095,0.74635,2679.3,2679.2,0.5413]
[1739438751795,0.8101839,2679.3,2679.2,0.5413]
[1739438752499,0.0638339,2679.3,2679.2,0.5413]
[1739438752698,0.8101868,2679.3,2679.2,0.5413]
[1739438752890,0.8101868,2679.3,2679.2,0.5474]
[1739438753202,0.8101868,2679.3,2678.9,0.00560339]
[1739438753203,0.74643,2679.0,2678.9,0.00560339]
[1739438754095,0.81027295,2679.0,2678.9,0.00560339]
[1739438754295,1.21978082,2679.0,2678.9,0.00560339]
[1739438754500,1.28362774,2679.0,2678.9,0.00560339]
[1739438755094,1.28362902,2679.0,2678.9,0.00560339]
[1739438756300,1.28362654,2679.0,2678.9,0.00560339]
[1739438757806,1.28362869,2679.0,2678.9,0.00560339]
[1739438759808,1.28362853,2679.0,2678.9,0.00560339]
[1739438760406,0.74657,2678.5,2678.4,3.2078]
[1739438760608,0.81042526,2678.5,2678.4,3.2078]
[1739438760812,0.74657,2678.5,2678.4,3.2078]
[1739438761008,4.3371,2678.8,2678.4,3.95439]
[1739438761309,0.06385124,2678.7,2678.5,1.146]
[1739438761509,0.74655,2678.6,2678.5,1.146]
[1739438762212,0.5708,2678.9,2678.5,1.146]
[1739438762410,0.74653,2678.7,2678.5,1.146]
[1739438762811,0.5708,2678.9,2678.5,1.146]
[1739438762812,0.74655,2678.6,2678.5,1.146]
[1739438763013,0.5708,2678.9,2678.5,1.146]
[1739438763221,0.74654,2678.7,2678.5,1.146]
[1739438763405,0.74655,2678.6,2678.5,1.146]
[1739438764002,0.5708,2678.9,2678.5,1.146]
[1739438764206,0.74655,2678.6,2678.5,1.146]
[1739438764408,0.5708,2678.9,2678.5,1.146]
[1739438764715,0.74653,2678.7,2678.5,1.146]
[1739438766218,0.5708,2678.9,2678.5,1.146]
[1739438766416,0.06384931,2678.8,2678.6,0.74653]
[1739438766623,0.81033931,2678.8,2678.7,0.5756]
[1739438766809,0.74649,2678.8,2678.7,0.5756]
[1739438767312,3.7763,2679.1,2678.7,0.5756]
[1739438767506,0.06384404,2679.0,2678.8,3.2078]
[1739438767715,0.74643,2679.0,2678.9,0.5816]
[1739438767912,0.74642,2679.1,2678.9,0.5816]
[1739438768115,0.74642,2679.1,2679.0,0.5917]
[1739438768308,0.81025916,2679.1,2679.0,0.5917]
[1739438769315,0.74649,2678.8,2678.7,0.5756]
[1739438769523,0.74652,2678.7,2678.6,1.164]
[1739438769820,0.81037081,2678.7,2678.6,1.164]
[1739438770722,0.74657,2678.5,2678.4,0.5734]
[1739438771323,0.7466,2678.4,2678.3,1.18350339]
[1739438772017,0.74658,2678.5,2678.3,1.18350339]
[1739438772819,0.5877,2678.6,2678.3,1.18350339]
[1739438773123,0.7466,2678.4,2678.3,1.18350339]
[1739438773923,0.5877,2678.6,2678.3,1.18350339]
[1739438774109,0.74659,2678.5,2678.3,1.18350339]
[1739438774315,0.74657,2678.6,2678.3,1.18350339]
[1739438774509,0.74657,2678.5,2678.3,1.18350339]
[1739438774715,0.74657,2678.6,2678.3,1.18350339]
[1739438775214,0.74657,2678.5,2678.3,1.18350339]
[1739438775517,3.2078,2678.8,2678.3,1.18350339]
[1739438775518,0.7466,2678.4,2678.3,1.18350339]
[1739438776616,2.9270015,2678.7,2678.3,1.18350339]
[1739438776822,0.7466,2678.4,2678.3,1.18350339]
[1739438777715,1.0606515,2678.7,2678.3,1.18350339]
[1739438777916,0.7466,2678.4,2678.3,1.18350339]
[1739438780811,0.7466,2678.4,2678.3,0.58800339]
[1739438781017,0.74668,2678.1,2678.0,0.5815]
[1739438781418,0.81054642,2678.1,2678.0,0.5815]
[1739438781623,0.74671,2678.0,2677.9,3.2078]
[1739438781817,0.74674,2677.9,2677.8,3.2078]
[1739438783925,0.00560339,2678.1,2677.6,0.5815]
[1739438784122,0.74677,2677.9,2677.6,0.5815]
[1739438784321,0.74677,2677.8,2677.6,0.5815]
[1739438786126,0.7468,2677.7,2677.6,0.5815]
[1739438788727,0.74682,2677.6,2677.5,4.3418]
[1739438789626,0.74685,2677.5,2677.4,0.5756]
[1739438789929,1.40223109,2677.5,2677.4,0.5756]
[1739438790522,3.94831575,2677.5,2677.2,3.7878]
[1739438790717,0.74691,2677.3,2677.2,3.7878]
[1739438790922,3.88443466,2677.5,2677.2,3.2078]
[1739438791122,0.74688,2677.4,2677.2,3.2078]
[1739438791631,3.88443466,2677.5,2677.2,3.2078]
[1739438791930,0.74688,2677.4,2677.2,3.2078]
[1739438792126,1.33836,2677.5,2677.2,3.2078]
[1739438792531,1.33836,2677.5,2677.2,3.95473]
[1739438792726,0.74689,2677.4,2677.2,3.2078]
[1739438793427,0.74688,2677.4,2677.2,3.2078]
[1739438793628,0.74691,2677.4,2677.2,3.2078]
[1739438793824,3.2078,2677.9,2677.2,3.2078]
[1739438794025,2.33677652,2677.8,2677.5,3.2078]
[1739438794225,0.06387652,2677.7,2677.6,0.5917]
[1739438794529,0.06387759,2677.7,2677.3,0.5436]
[1739438794719,0.06387759,2677.7,2677.4,0.549]
[1739438794924,0.06387759,2677.7,2677.6,0.74682]
[1739438795233,0.5598,2678.0,2677.6,0.74682]
[1739438795532,0.06387175,2677.9,2677.7,0.5503]
[1739438795726,1.73060339,2678.1,2677.8,0.5436]
[1739438796031,0.8105875,2678.0,2677.8,1.0926]
[1739438796231,0.74672,2678.0,2677.8,1.0926]
[1739438796732,0.74674,2677.9,2677.8,1.0926]
[1739438798034,0.74674,2678.0,2677.8,1.0926]
[1739438798431,0.74674,2677.9,2677.8,1.0926]
[1739438799732,5.02353805,2678.1,2677.8,1.0926]
[1739438799935,0.74674,2677.9,2677.8,1.0926]
[1739438801628,0.74674,2677.9,2677.8,0.549]
[1739438803135,5.02353805,2678.1,2677.8,0.549]
[1739438803330,0.74674,2677.9,2677.8,0.549]
[1739438804735,0.74674,2677.9,2677.7,0.5503]
[1739438804736,0.06387163,2677.9,2677.6,0.5958]
[1739438804936,0.7468,2677.7,2677.6,0.5958]
[1739438805533,0.5655,2677.8,2677.3,1.1331]
[1739438805835,0.74686,2677.5,2677.3,1.7258]
[1739438806423,0.74687,2677.5,2677.3,1.7258]
[1739438806635,0.74688,2677.4,2677.3,1.7258]
[1739438806935,0.74688,2677.4,2677.3,0.5728]
[1739438807229,0.74688,2677.4,2676.9,0.747]
[1739438807230,1.86728,2677.3,2676.9,3.2078]
[1739438807422,0.74699,2677.0,2676.9,3.2078]
[1739438807627,0.74697,2677.1,2676.9,3.2078]
[1739438808439,3.29293466,2677.2,2676.9,3.2078]
[1739438808440,0.74699,2677.0,2676.9,3.2078]
[1739438809031,3.29293466,2677.2,2676.7,0.571]
[1739438809338,0.74704,2676.9,2676.7,0.571]
[1739438809837,3.29293466,2677.2,2676.7,0.571]
[1739438810030,0.74703,2676.9,2676.7,0.571]
[1739438810234,0.74702,2677.0,2676.7,0.571]
[1739438810431,0.74704,2676.9,2676.7,0.571]
[1739438810633,3.29293466,2677.2,2676.7,0.571]
[1739438810840,0.74699,2677.1,2676.7,1.31807]
[1739438811136,3.29293466,2677.2,2676.7,0.571]
[1739438811137,4.03988466,2677.2,2676.7,0.571]
[1739438811337,0.74697,2677.1,2676.8,0.74705]
[1739438811534,1.699,2677.3,2676.8,0.74705]
[1739438811737,0.06389142,2677.2,2676.9,3.2078]
[1739438811934,0.74696,2677.2,2676.9,3.2078]
[1739438812241,0.5644,2677.3,2677.0,0.5553]
[1739438812439,0.74696,2677.1,2677.0,0.5553]
[1739438813140,0.74699,2677.0,2676.7,0.571]
[1739438813339,0.74704,2676.9,2676.8,3.2078]
[1739438813637,0.5644,2677.3,2676.8,3.2078]
[1739438813840,0.74699,2677.1,2676.8,3.2078]
[1739438814038,0.747,2677.0,2676.8,3.2078]
[1739438814335,0.74702,2676.9,2676.8,3.2078]
[1739438814741,3.2078,2677.1,2676.7,1.117]
[1739438815037,0.74705,2676.8,2676.7,1.117]
[1739438815633,0.5657,2676.9,2676.5,3.2078]
[1739438815838,1.1308,2676.9,2676.5,3.2078]
[1739438816435,0.74709,2676.7,2676.5,3.2078]
[1739438816635,1.1308,2676.9,2676.5,3.2078]
[1739438816941,0.74705,2676.8,2676.5,3.2078]
[1739438817145,0.74705,2676.8,2676.5,3.95493]
[1739438817434,1.1308,2676.9,2676.5,3.2078]
[1739438817635,0.74707,2676.8,2676.5,3.95493]
[1739438817829,0.5657,2676.9,2676.5,3.2078]
[1739438818238,3.2078,2677.1,2676.5,3.2078]
[1739438818441,0.06389476,2677.0,2676.9,0.74701]
[1739438818635,0.81088476,2677.0,2676.9,1.1487]
[1739438818936,0.81088476,2677.0,2676.8,3.2078]
[1739438818937,0.74702,2676.9,2676.8,3.2078]
[1739438819144,0.74711,2676.6,2676.5,1.1487]
[1739438819441,0.60339476,2676.9,2676.5,1.1487]
[1739438819442,0.5395,2676.9,2676.5,1.1487]
[1739438819641,1.28653,2676.9,2676.6,0.74709]
[1739438819841,0.5395,2676.9,2676.5,1.1487]
[1739438820137,3.29293466,2677.2,2676.7,3.2078]
[1739438820339,0.06389189,2677.1,2676.9,0.747]
[1739438820540,0.06389189,2677.1,2677.0,1.89569]
[1739438820844,1.724,2677.2,2677.0,1.89567]
[1739438821039,5.01693466,2677.5,2677.0,4.3565]
[1739438821337,0.06388311,2677.4,2677.2,0.74693]
[1739438821537,0.74689,2677.4,2677.1,0.74695]
[1739438822036,0.7469,2677.4,2677.1,0.74695]
[1739438822341,1.724,2677.5,2677.0,4.3565]
[1739438822546,0.7469,2677.4,2677.1,0.74695]
[1739438823338,0.5395,2677.6,2677.0,4.3565]
[1739438823542,3.2078,2677.7,2677.3,3.2078]
[1739438823837,0.74688,2677.4,2677.3,3.2078]
[1739438825247,3.2078,2677.7,2677.3,3.2078]
[1739438825440,0.06387875,2677.6,2677.3,3.2078]
[1739438825647,0.74678,2677.8,2677.5,3.95465]
[1739438825949,1.724,2678.0,2677.5,3.95465]
[1739438825950,0.74675,2677.9,2677.6,1.88522]
[1739438826243,1.724,2678.0,2677.6,1.1384]
[1739438826442,0.74674,2677.9,2677.6,1.1384]
[1739438826642,0.74674,2677.9,2677.6,1.88521]
[1739438826840,1.724,2678.0,2677.6,1.1384]
[1739438827044,0.00560339,2678.1,2677.8,3.2078]
[1739438827234,0.00560339,2678.1,2678.0,0.74671]
[1739438827440,0.00560339,2678.1,2677.8,3.2078]
[1739438827643,0.00560339,2678.1,2677.9,0.74672]
[1739438827842,0.00560339,2678.1,2678.0,0.74671]
[1739438828037,0.00560339,2678.1,2678.0,3.95451]
[1739438828343,0.74677,2677.8,2677.7,3.2078]
[1739438828540,0.7468,2677.7,2677.6,1.1384]
[1739438828843,0.7468,2677.7,2677.6,0.5932]
[1739438829447,3.7848,2678.0,2677.6,0.5932]
[1739438829649,0.74677,2677.8,2677.6,0.5932]
[1739438830050,3.7848,2678.0,2677.6,0.5932]
[1739438830254,0.7468,2677.7,2677.6,0.5932]
[1739438834953,0.74682,2677.6,2677.5,0.5505]
[1739438835652,0.7468,2677.7,2677.5,0.5505]
[1739438835849,0.5817,2677.9,2677.5,0.5505]
[1739438836056,0.06386633,2677.8,2677.5,1.29734]
[1739438836254,5.5078,2678.0,2677.5,0.5505]
[1739438836754,0.74682,2677.6,2677.5,0.5505]
[1739438837259,0.74682,2677.7,2677.5,0.5505]
[1739438837458,7.37461,2678.0,2677.5,0.5505]
[1739438837654,0.74682,2677.6,2677.5,0.5505]
[1739438837851,0.7468,2677.7,2677.5,0.5505]
[1739438838253,0.74682,2677.6,2677.5,0.5505]
[1739438839859,0.74682,2677.7,2677.5,0.5505]
[1739438840054,0.74682,2677.6,2677.5,0.5505]
[1739438840267,5.5078,2678.0,2677.5,0.5505]
[1739438840554,0.06386734,2677.9,2677.5,0.5505]
[1739438840759,0.06386734,2677.9,2677.5,1.29734]
[1739438840965,0.7468,2677.7,2677.5,0.5505]
[1739438841150,5.5078,2678.0,2677.5,0.5505]
[1739438841461,0.74682,2677.6,2677.5,0.5505]
[1739438842659,3.7897,2678.0,2677.5,0.5505]
[1739438842858,0.06386534,2677.9,2677.5,0.5505]
[1739438843153,0.74682,2677.6,2677.5,0.5505]
[1739438848762,0.74685,2677.5,2677.4,3.7854]
[1739438848958,1.28955,2677.5,2677.4,4.3547]
[1739438849863,0.74685,2677.5,2677.4,4.3547]
[1739438864980,0.74685,2677.5,2676.9,1.86755]
[1739438864981,0.74694,2677.2,2677.1,3.2078]
[1739438866479,4.03987466,2677.2,2677.1,3.2078]
[1739438867380,0.543,2677.3,2677.1,3.2078]
[1739438867677,0.74694,2677.2,2677.1,3.2078]
[1739438873390,0.543,2677.3,2677.1,3.95475]
[1739438873584,3.29293466,2677.5,2677.1,3.2078]
[1739438873786,0.06388643,2677.4,2677.1,3.2078]
[1739438873990,0.74689,2677.4,2677.1,3.2078]
[1739438874692,0.74694,2677.2,2677.1,3.2078]
[1739438875797,1.86723,2677.4,2676.9,1.1507]
[1739438875798,0.74699,2677.0,2676.9,1.1507]
[1739438875986,0.74699,2677.0,2676.9,41.9507]
[1739438876389,0.74699,2677.0,2676.9,1.1507]
[1739438879700,5.70269466,2677.2,2676.8,3.2078]
[1739438879897,0.74702,2676.9,2676.8,3.2078]
[1739438880493,3.83533466,2677.2,2676.8,3.2078]
[1739438880698,0.74702,2676.9,2676.8,3.2078]
[1739438882303,0.74705,2676.8,2676.7,0.5504]
[1739438882604,0.7471,2676.6,2676.5,0.5879]
[1739438885001,0.5709,2676.8,2676.5,0.5879]
[1739438885206,0.06390494,2676.7,2676.6,0.5896]
[1739438885406,3.7668,2677.0,2676.6,4.3501]
[1739438885620,0.06389939,2676.9,2676.7,0.74708]
[1739438885801,1.30599,2677.0,2676.7,0.74708]
[1739438886108,0.559,2677.0,2676.7,0.74708]
[1739438886306,0.74703,2676.9,2676.7,0.74708]
[1739438886505,0.559,2677.0,2676.6,4.3501]
[1739438886706,0.74697,2677.1,2676.9,0.74701]
[1739438886904,0.74697,2677.1,2677.0,1.7125]
[1739438887212,0.81086577,2677.1,2677.0,1.7125]
[1739438887407,0.06389577,2677.1,2676.6,3.2078]
[1739438887604,0.74708,2676.7,2676.6,3.2078]
[1739438896721,0.74719,2676.3,2676.2,1.6621]
[1739438899122,5.16638805,2676.5,2676.0,3.2078]
[1739438899320,0.74723,2676.2,2676.1,1.665]
[1739438899521,0.74723,2676.2,2676.1,42.465]
[1739438899822,0.74721,2676.3,2676.1,42.465]
[1739438900020,3.29853805,2676.5,2676.1,42.465]
[1739438900220,0.74718,2676.4,2676.1,43.21222]
[1739438900431,0.00560339,2676.5,2676.1,42.465]
[1739438900621,0.74717,2676.4,2676.2,0.74721]
[1739438900931,0.74717,2676.4,2676.1,42.465]
[1739438901125,0.74717,2676.4,2676.1,43.21222]
[1739438901428,0.7472,2676.3,2676.1,43.21222]
[1739438901629,0.00560339,2676.5,2676.1,42.465]
[1739438901821,0.7472,2676.3,2676.1,43.21223]
[1739438902333,0.00560339,2676.5,2676.1,42.465]
[1739438902824,0.74721,2676.3,2676.1,43.21222]
[1739438903422,0.00560339,2676.5,2676.1,42.465]
[1739438903626,0.00560339,2676.5,2676.4,3.95496]
[1739438904036,0.00560339,2676.5,2676.4,3.2078]
[1739438904229,0.75273339,2676.5,2676.4,3.2078]
[1739438904528,0.00560339,2676.5,2676.4,3.2078]
[1739438904733,0.75273339,2676.5,2676.4,3.2078]
[1739438906133,0.00560339,2676.5,2676.4,3.2078]
[1739438906429,0.00560339,2676.5,2676.4,3.95496]
[1739438907630,0.74705,2676.9,2676.8,0.74703]
[1739438907829,0.74707,2676.8,2676.7,3.95485]
[1739438908725,0.74707,2676.8,2676.7,3.95488]
[1739438909433,0.00560339,2677.0,2676.7,3.2078]
[1739438909727,0.00560339,2677.0,2676.9,0.74702]
[1739438911242,0.75259339,2677.0,2676.9,1.87782]
[1739438912032,0.00560339,2677.0,2676.9,1.87782]
[1739438912433,0.00560339,2677.0,2676.9,5.17075466]
[1739438914033,0.00560339,2677.0,2676.9,45.97075466]
[1739438918641,0.75259339,2677.0,2676.9,45.97075466]
[1739438920436,0.75259339,2677.0,2676.9,41.9308]
[1739438920745,0.75259339,2677.0,2676.9,1.1308]
[1739438923542,0.75259339,2677.0,2676.9,1.87782]
[1739438923937,0.00560339,2677.0,2676.9,1.87782]
[1739438924138,0.00560339,2677.0,2676.9,5.17075466]
[1739438924645,0.00560339,2677.0,2676.9,45.97075466]
[1739438927153,0.75259339,2677.0,2676.9,45.97075466]
[1739438927848,0.00560339,2677.0,2676.9,45.97075466]
[1739438929748,0.75259339,2677.0,2676.9,45.97075466]
[1739438930051,0.00560339,2677.0,2676.9,45.97075466]
[1739438930652,0.75259339,2677.0,2676.9,45.97075466]
[1739438931254,0.00560339,2677.0,2676.9,45.97075466]
[1739438932153,0.75259339,2677.0,2676.9,45.97075466]
[1739438932350,0.00560339,2677.0,2676.9,45.97075466]
[1739438938459,0.557,2677.5,2677.3,0.74688]
[1739438938656,0.74691,2677.4,2677.3,3.95468]
[1739438939253,0.74691,2677.4,2677.3,44.75468]
[1739438940758,0.557,2677.5,2677.3,44.75468]
[1739438940963,1.30388,2677.5,2677.4,0.74688]
[1739438941263,0.74688,2677.4,2677.3,45.90318]
[1739438942756,1.30388,2677.5,2677.4,0.74688]
[1739438943152,0.74688,2677.4,2677.3,45.1563]
[1739438943363,0.74688,2677.4,2677.3,45.90319]
[1739438943661,0.00560339,2677.6,2677.4,0.74688]
[1739438943854,0.00560339,2677.6,2677.5,4.03978466]
[1739438944054,1.1727,2678.2,2678.1,0.74669]
[1739438944261,1.1727,2678.2,2678.1,3.95449]
[1739438944459,1.1727,2678.2,2678.1,3.2078]
[1739438944460,1.91936,2678.2,2678.1,3.2078]
[1739438944863,0.598,2678.2,2678.1,3.95449]
[1739438945161,0.00560339,2678.4,2678.1,3.2078]
[1739438945357,1.35020339,2678.4,2678.3,0.74663]
[1739438945553,0.00560339,2678.4,2678.3,1.33023]
[1739438946354,0.598,2678.8,2678.3,1.1606]
[1739438946560,0.598,2678.8,2678.7,3.95432]
[1739438946860,0.598,2678.8,2678.7,44.75432]
[1739438947459,0.598,2678.8,2678.7,44.0078]
[1739438947661,1.34449,2678.8,2678.7,44.0078]
[1739438948264,1.34449,2678.8,2678.5,3.2078]
[1739438948265,0.598,2678.8,2678.5,3.2078]
[1739438948455,0.74655,2678.6,2678.5,3.2078]
[1739438949272,0.598,2678.8,2678.2,5.5084]
[1739438949565,0.74661,2678.4,2678.2,5.5084]
[1739438949759,0.5859,2678.3,2678.2,5.5084]
[1739438950159,0.5859,2678.3,2678.2,6.25506]
[1739438950456,0.5859,2678.3,2678.2,3.2078]
[1739438950666,1.87573,2678.3,2678.2,3.2078]
[1739438950961,1.1291,2678.3,2678.2,3.95446]
[1739438951160,1.1291,2678.3,2678.2,3.2078]
[1739438951557,1.87573,2678.3,2678.2,3.2078]
[1739438951967,1.87573,2678.3,2677.9,3.21340339]
[1739438951968,1.1291,2678.3,2677.9,3.21340339]
[1739438952268,0.74671,2678.0,2677.9,3.21340339]
[1739438953956,4.42203466,2678.3,2677.9,3.21340339]
[1739438954155,0.06386685,2678.2,2677.9,3.21340339]
[1739438954661,0.74671,2678.0,2677.9,3.21340339]
[1739438957862,4.42203466,2678.3,2677.9,3.21340339]
[1739438958064,0.74671,2678.0,2677.9,3.21340339]
[1739438959169,4.42203466,2678.3,2677.9,3.21340339]
[1739438959469,0.74671,2678.0,2677.9,3.21340339]
[1739438961270,0.74671,2678.0,2677.9,0.00560339]
[1739438961663,0.81058308,2678.0,2677.9,0.00560339]
[1739438961865,0.81058258,2678.0,2677.9,0.00560339]
[1739438962867,0.74671,2678.0,2677.9,0.00560339]
[1739438963267,0.8105825,2678.0,2677.9,0.00560339]
[1739438964674,0.81058513,2678.0,2677.9,0.00560339]
[1739438965278,4.10351979,2678.0,2677.9,0.00560339]
[1739438965572,5.81751979,2678.0,2677.9,0.00560339]
[1739438966874,0.74688,2677.4,2677.3,3.2078]
[1739438967071,0.74696,2677.1,2677.0,3.2078]
[1739438967775,0.74705,2676.9,2676.7,45.1725]
[1739438967980,0.74702,2676.9,2676.8,0.00560339]
[1739438969879,3.29293466,2677.2,2676.8,0.00560339]
[1739438970074,0.74702,2676.9,2676.8,0.00560339]
[1739438971081,0.81092056,2676.9,2676.8,0.00560339]
[1739438971278,0.747,2677.0,2676.8,0.00560339]
[1739438971476,0.74701,2677.0,2676.8,0.00560339]
[1739438972284,0.74702,2676.9,2676.8,0.00560339]
[1739438973184,0.5451,2677.1,2676.8,0.00560339]
[1739438973374,0.74702,2676.9,2676.8,0.00560339]
[1739438974277,0.5451,2677.1,2676.8,0.00560339]
[1739438974585,0.81089697,2677.0,2676.8,0.00560339]
[1739438974770,0.747,2677.0,2676.8,0.00560339]
[1739438974974,0.74702,2676.9,2676.8,0.00560339]
[1739438978084,0.5451,2677.1,2676.8,0.00560339]